Cogmind - Beta 16 @@@ ROGUE MODE // 2025.10.25 @ 15:41:18 Player: celerysam Result: Destroyed by GZ-162(R) with Subdweller Beam Cannon Performance ------------- Evolutions (0) 0 Regions Visited (2) 400 Robots Destroyed (10) 50 Value Destroyed (208) 208 Prototype IDs (0) 0 Alien Tech Used (0) 0 Bonus (-3) -3 TOTAL SCORE: 655 Bonus ------- Friendly Fire -3 Cogmind --------- Core Integrity 0/250 Matter 270/300 Energy 35/100 System Corruption 0% Temperature Cool (9) Movement Walking (260) Ox2 Location -10/Subcaves Parts ------- > --- POWER (1) -------- (None) > --- PROPULSION (2) --- Carbon-fiber Leg Carbon-fiber Leg > --- UTILITY (2) ------ Huge Storage Unit Makeshift Light Armor Plating > --- WEAPON (2) ------- Small Laser Mining Claw > --- INVENTORY (25) --- Light Ion Engine Subdweller Power Source Subdweller Power Source Light Treads Light Treads Spiked Treads Aluminum Leg Aluminum Leg Myomer Leg Subdweller Monowheel Disposable Heat Sink Small Storage Unit Subdweller Optics Armor Integrity Analyzer Phase Shifter Makeshift Cloaking Device Scrap Shield Subdweller Laser Battle Rifle Subdweller Machine Gun Barrage Gun Peak State ------------ > --- POWER ------------ (None) > --- PROPULSION ------- Carbon-fiber Leg Carbon-fiber Leg > --- UTILITY ---------- Huge Storage Unit Makeshift Light Armor Plating > --- WEAPON ----------- Small Laser Mining Claw > --- INVENTORY -------- Light Ion Engine Subdweller Power Source Subdweller Power Source Light Treads Light Treads Spiked Treads Aluminum Leg Aluminum Leg Myomer Leg Subdweller Monowheel Disposable Heat Sink Small Storage Unit Subdweller Optics Armor Integrity Analyzer Phase Shifter Makeshift Cloaking Device Scrap Shield Subdweller Laser Battle Rifle Subdweller Machine Gun Barrage Gun [Rating: 18] Favorites ----------- Power Light Ion Engine Engine Light Ion Engine Propulsion Wheel Leg Aluminum Leg Wheel Wheel Utility Huge Storage Unit Device Disposable Heat Sink Storage Huge Storage Unit Protection Makeshift Light Armor Plating Weapon Mining Claw Energy Gun Subdweller Laser Ballistic Gun Assault Rifle Launcher Grenade Launcher Slashing Weapon Mining Claw Build | -11 -10 -10 ------- Run | Yrd Mat Sub Slots Evolved . | . . . Power . | . . . Propulsion . | . . . Utility . | . . . Weapon . | . . . Parts Attached 20 | 5 4 11 Power 1 | . 1 . Engine 1 | . 1 . Core . | . . . Reactor . | . . . Propulsion 8 | 2 2 4 Treads . | . . . Leg 4 | 2 . 2 Wheel 4 | . 2 2 Hover . | . . . Flight . | . . . Utility 4 | 1 1 2 Device 1 | . . 1 Storage 2 | 1 1 . Processor . | . . . Hackware . | . . . Protection 1 | . . 1 Artifact . | . . . Weapon 7 | 2 . 5 Energy Gun 4 | 1 . 3 Energy Cannon . | . . . Ballistic Gun 1 | 1 . . Ballistic Cannon . | . . . Launcher 1 | . . 1 Special Weapon . | . . . Impact Weapon . | . . . Slashing Weapon 1 | . . 1 Piercing Weapon . | . . . Special Melee Weapon . | . . . Unidentified Prototypes . | . . . Parts Lost 8 | . . 8 Power 1 | . . 1 Propulsion 3 | . . 3 Utility . | . . . Weapon 4 | . . 4 Highest Loss Streak 3 | . . 3 To Critical Strikes . | . . . Average Backups 16 | 4 9 17 Power 2 | 1 1 2 Propulsion 6 | 2 4 6 Utility 4 | . . 5 Weapon 2 | . 2 2 Tool/Special . | . . . Unused Backups 15 | . . 15 Power 3 | . . 3 Propulsion 4 | . . 4 Utility 5 | . . 5 Weapon 3 | . . 3 Tool/Special . | . . . Average Slot Usage (%) 85 | . 85 85 Engine 13 | . 14 13 Leg 1 | . 11 . Wheel 15 | . 16 15 Device 1 | . . 1 Storage 14 | . 14 14 Protection 10 | . . 11 Energy Gun 13 | . 14 13 Ballistic Gun 1 | . 14 . Slashing Weapon 11 | . . 12 Peak Build Rating 18 | 5 7 18 Average Rating 12 | 3 6 13 On Entrance 4 | . 5 7 Avg Prop Armor Cover (%) . | . . . Naked Turns . | . . . Heaviest Build 93 | 8 91 93 Greatest Support 30 | 20 20 30 Greatest Overweight (x) 9 | . 4 9 Average Overweight (x) 7 | . 1 8 Largest Inventory Capacity 25 | 8 25 25 Average Capacity 23 | 6 17 25 Most Carried 24 | 7 11 24 Average Carried 17 | 5 9 18 Final Capacity 25 | 8 25 25 Final Carried 22 | 7 11 22 Class Distribution -------------------- 100% | Mutant Dominant Class ---------------- Mutant | -10/Materials Mutant | -10/Subcaves Resources | -11 -10 -10 ----------- Run | Yrd Mat Sub Matter Collected 460 | 188 45 227 Remotely . | . . . Salvage Created 217 | . 128 89 Parts 20 | . 11 9 Haulers Intercepted . | . . . Recyclers Shooed . | . . . Parts Field Recycled . | . . . Retrieved Matter . | . . . Parts Self-Destructed 11 | . . 11 Prevented . | . . . Parts Restored . | . . . Kills | -11 -10 -10 ------- Run | Yrd Mat Sub Combat Hostiles Destroyed 10 | . 5 5 Guns 6 | . 5 1 AOE 4 | . . 4 Classes Destroyed 3 | . 2 1 Swarmer 6 | . 3 3 Grunt 2 | . 2 . Subdweller 2 | . . 2 Best Kill Streak 4 | . 3 4 Combat Bots Only 4 | . 3 4 Max Kills in Single Turn 3 | . 1 3 Gunslinging . | . . . Exploded 3 | . . 3 Melee . | . . . Uniques/NPCs Destroyed . | . . . Combat | -11 -10 -10 -------- Run | Yrd Mat Sub Hostile Shots Fired 80 | . 39 41 Missed 18 | . 5 13 Hits 62 | . 34 28 Projectile 62 | . 34 28 Critical Strikes 1 | . . 1 Damage Taken 1014 | . 305 709 Core 254 | . 44 210 Absorbed by Shields . | . . . Core Remaining (%) 100 | 100 . . Volleys Fired 37 | . 18 19 Largest 2 | . 2 2 Hottest 100 | . 60 100 Shots Fired 64 | . 34 30 Gun 61 | . 34 27 Cannon . | . . . Launcher 3 | . . 3 Special . | . . . Kinetic 25 | . 18 7 Thermal 36 | . 16 20 Explosive 3 | . . 3 Electromagnetic . | . . . Robot Hit Streak 17 | . 7 17 Robot Miss Streak 4 | . 4 1 Penetration Max . | . . . Secondary Targets 1 | . 1 . Max Gunslinging Chain 1 | . 1 . Shots Hit Robots 45 | . 19 26 Core Hits 26 | . 7 19 Critical Kills . | . . . Critical Parts Destroyed . | . . . Critical Strikes . | . . . Melee Attacks 29 | . . 29 Impact . | . . . Slashing 29 | . . 29 Piercing . | . . . Sneak Attacks . | . . . Combat Hostiles . | . . . Follow-up Attacks . | . . . Damage Inflicted 911 | . 250 661 Guns 521 | . 250 271 Cannons . | . . . Explosions 390 | . . 390 Melee . | . . . Ramming . | . . . Kinetic 205 | . 128 77 Thermal 316 | . 122 194 Explosive 390 | . . 390 Electromagnetic . | . . . Impact . | . . . Slashing . | . . . Piercing . | . . . Highest Corruption . | . . . Average Corruption . | . . . Corruption Purged . | . . . Corruption Blocked . | . . . Overload Shots . | . . . Overflow Damage . | . . . Projectiles . | . . . Explosions . | . . . Melee . | . . . Knockbacks . | . . . Impact . | . . . Kinetic . | . . . Secondary . | . . . Self-Inflicted Damage . | . . . Shots . | . . . Rammed 1 | . 1 . Targets Rammed 1 | . 1 . Kicked . | . . . Crushed . | . . . Highest Temperature 12 | . 12 2 Average Temperature 8 | . 9 2 Received Heat Transfer 252 | . 66 186 Siege Activations . | . . . Martial Activations . | . . . Shielding Activations . | . . . Robots Disrupted . | . . . Combat Hostiles . | . . . Robots Corrupted . | . . . Combat Hostiles . | . . . Parts Fried . | . . . Impact Corruptions . | . . . Robots Melted . | . . . Combat Hostiles . | . . . Parts Melted . | . . . Heat Transferred 675 | . 275 400 Parts Sabotaged . | . . . Parts Stolen . | . . . Parts Stripped . | . . . Power Chain Reactions . | . . . Alert | -11 -10 -10 ------- Run | Yrd Mat Sub Maximum Alert Level . | . . . Low Security (%) 100 | 100 100 . Level 1 . | . . . Level 2 . | . . . Level 3 . | . . . Level 4 . | . . . Level 5 . | . . . High Security . | . . . Max Security . | . . . Peak Influence 51 | . 51 . Initial . | . . . Average 21 | . 27 . Influence Increases 181 | . 111 70 Destroy 0b10 Robot/C 160 | . 100 60 Destroy Leader 20 | . 10 10 Destroy Structure 1 | . 1 . Influence Decreases 181 | . 110 71 Entered New Map 1 | . . 1 Time Decay 150 | . 110 40 Lost Part 30 | . . 30 Squads Dispatched . | . . . Investigation . | . . . Extermination . | . . . Reinforcement . | . . . Assault . | . . . Garrison . | . . . Intercept . | . . . Searches Triggered . | . . . Construction Impeded . | . . . Haulers Reinforced . | . . . Active Scanning Responses . | . . . Cargo Convoy Interrupts . | . . . Stealth | -11 -10 -10 --------- Run | Yrd Mat Sub Distress Signals . | . . . Communications Jammed . | . . . Distress Signals . | . . . Times Spotted 25 | . 8 17 Peak Tracking Total 7 | . 4 7 Tactical Retreats . | . . . Traps | -11 -10 -10 ------- Run | Yrd Mat Sub Traps Triggered . | . . . Indirectly . | . . . Trap Hack Attempts . | . . . Triggered . | . . . Disarmed . | . . . Reprogrammed . | . . . Reused . | . . . Traps Extracted . | . . . Installed . | . . . Triggered . | . . . Machines | -11 -10 -10 ---------- Run | Yrd Mat Sub Machines Disabled . | . . . Max in Single Turn . | . . . Machines Repaired . | . . . Machines Dismantled . | . . . Machines Sabotaged . | . . . Overloaded Fab Kills . | . . . Hacking | -11 -10 -10 --------- Run | Yrd Mat Sub Machines Accessed 3 | . . 3 Terminals . | . . . Fabricators . | . . . Repair Stations . | . . . Recycling Units . | . . . Scanalyzers . | . . . Garrison Access . | . . . Total Hacks 7 | . . 7 Successful 7 | . . 7 Failed . | . . . Catastrophic . | . . . Database Lockouts . | . . . Manual . | . . . Terminals . | . . . Fabricators . | . . . Repair Stations . | . . . Recycling Units . | . . . Scanalyzers . | . . . Garrison Access . | . . . Terminal Hacks 7 | . . 7 Record 5 | . . 5 Open Door 1 | . . 1 Release Object 1 | . . 1 Fabricator Hacks . | . . . Repair Station Hacks . | . . . Recycling Unit Hacks . | . . . Scanalyzer . | . . . Garrison Access Hacks . | . . . Unauthorized Hacks . | . . . Terminals . | . . . Fabricators . | . . . Repair Stations . | . . . Recycling Units . | . . . Scanalyzers . | . . . Garrison Access . | . . . Data Cores Recovered . | . . . Used . | . . . Hacking Detections . | . . . Full Trace Events . | . . . Feedback Events . | . . . Feedback Blocked . | . . . Robot Schematics Acquired . | . . . Robots Built . | . . . Authchips . | . . . Time . | . . . Total Robot Build Rating . | . . . Part Schematics Acquired . | . . . Parts Built . | . . . Authchips . | . . . Time . | . . . Total Part Build Rating . | . . . Part Studies Acquired . | . . . Parts Repaired . | . . . Time . | . . . Parts Recycled . | . . . Recycled Matter . | . . . Retrieved Matter . | . . . Retrieved Components . | . . . Parts Scanalyzed . | . . . Part Schematics Acquired . | . . . Parts Damaged . | . . . Bothacking | -11 -10 -10 ------------ Run | Yrd Mat Sub Used RIF Installer . | . . . Robots Hacked . | . . . Non-combat . | . . . Combat . | . . . Robot Hacks Applied . | . . . Relay Couplers Released . | . . . Fabnet Peak Effective % . | . . . Robots Rewired . | . . . Allies Hacked . | . . . Hacks Repelled . | . . . Allies | -11 -10 -10 -------- Run | Yrd Mat Sub Total Allies . | . . . Largest Group . | . . . Highest-Rated Group . | . . . Highest-Rated Ally . | . . . Total Orders . | . . . Ally Attacks . | . . . Total Damage . | . . . Kills . | . . . Allies Corrupted . | . . . Allies Melted . | . . . Intel | -11 -10 -10 ------- Run | Yrd Mat Sub Active Infowar (turns) . | . . . Robot Analysis Total . | . . . Derelict Logs Recovered . | . . . Drone Launches . | . . . Drone Recoveries . | . . . Exploration | -11 -10 -10 ------------- Run | Yrd Mat Sub Turns Passed 2595 | 59 258 2278 Spaces Moved 1168 | 43 100 1025 Core 9 | 9 . . Treads . | . . . Legs 92 | 34 58 . Wheels 1067 | . 42 1025 Hover . | . . . Flight . | . . . Fastest Speed 50 | 50 120 119 Average Speed 194 | 105 128 204 Slowest Speed 215 | 120 140 215 Overloaded Moves . | . . . Propulsion Burnouts . | . . . Robots Hopped . | . . . Potential Cave-ins . | . . . Cave-ins Triggered . | . . . Exploration Rate (%) 22 | 3 21 42 Regions Visited 2 Branch Regions 1 Pre-discovered Areas 1 | . . 1 Known Exits Taken . | . . . Unknown Exits Taken 2 | 1 1 . Scrap Searched 2 | . . 2 Spaces Dug . | . . . Terrain Destroyed 14 | . . 14 Melee . | . . . Projectile . | . . . AOE 14 | . . 14 Terrain Rammed . | . . . Walls Destroyed . | . . . Machines Disabled . | . . . Actions | -11 -10 -10 --------- Run | Yrd Mat Sub Total 1367 | 54 194 1119 Wait 81 | . 67 14 Move 1166 | 42 99 1025 Hop . | . . . Pick Up 29 | 7 4 18 Fast Attach 6 | 5 1 . Attach 9 | . 1 8 Detach 1 | . 1 . Swap 7 | . 2 5 Drop . | . . . Fire 37 | . 18 19 Melee 29 | . . 29 Ram 1 | . 1 . Kick . | . . . Crush . | . . . Escape Stasis . | . . . Rewire . | . . . Trap . | . . . Miscellaneous 1 | . . 1 Route ------- -11/Scrapyard -10/Materials (discovered 3 exits: [*Mat] / [*Min] / *Sub) -10/Subcaves History --------- Turn | Location | Event 7 | -11/Scrapyard | Discovered new exit (range 16) 60 | -11/Scrapyard | Entered Materials 129 | -10/Materials | Discovered new exit (range 8) 158 | -10/Materials | Discovered new exit (range 12) 303 | -10/Materials | Discovered new exit (range 7) 313 | -10/Materials | Build established: Mutant 318 | -10/Materials | Entered Subcaves 319 | -10/Subcaves | Approached by a straggling Scientist 381 | -10/Subcaves | Learned location of Zion (-7) 381 | -10/Subcaves | Met a Zionite searching for "candidates" 399 | -10/Subcaves | Ambushed by Subdwellers from Twisted Machinery 537 | -10/Subcaves | Ambushed by swarm of Subdwellers 541 | -10/Subcaves | Ambushed by Subdwellers from Twisted Machinery 549 | -10/Subcaves | Core integrity fell below 50% 560 | -10/Subcaves | Core integrity fell below 20% 603 | -10/Subcaves | Lost 3 parts (1n2w) 626 | -10/Subcaves | Shifting Twisted Machinery released Mak. Light Armor Plating 636 | -10/Subcaves | Shifting Twisted Machinery released Barrage Gun 751 | -10/Subcaves | Disturbed a concealed Subdweller 1034 | -10/Subcaves | A swath of the cavern ceiling suddenly collapsed 1189 | -10/Subcaves | Released subatomizers from SUBCON Basin 1564 | -10/Subcaves | Visited Clippyterm 1570 | -10/Subcaves | Learned Factory fabricator intel 1570 | -10/Subcaves | Learned Research security intel 2596 | -10/Subcaves | Destroyed by GZ-162(R) with Subdweller Beam Cannon Last Messages --------------- It looks like you're afraid of guards, would you like help? Data stored: Research security intel. >>Record "Hexidium" It looks like you're searching for the Unchained HQ. I could tell you where it is but then I'd have to kill you. 01722_ Subatomizers dissect the Sub. Optics. 02089_ Acquired Carbon-fiber Leg. 02097_ Acquired Battle Rifle. 02101_ Searching scrap... 02101_ Found Sub. Laser. 02101_ Found 41 Matter. 02103_ Searching scrap... 02103_ Found Sub. Power Source. 02103_ Found 48 Matter. 02503_ Acquired Mak. Cloaking Device. 02581_ GZ-162(R): "OHNO!" 02583_ Lgt. Ion Engine destroyed. 02587_ Wheel destroyed. Map ----- +----------------------------------------------------+ | ?????####??????## ##??????????????? | | ????????????????##### #??????????????? | | ?????????????????##### #??????????????? | | ?????????????????# # ##?????????????? | | ??????????????????# ### # #?????????????? | | ???????????????????# ## ##?????????????? | | ??????????????????## ## #?????????????? | | ?????????????????## ##?????????????? | | ????????????????## #??????????????? | | ????????????????# #??????????????? | | ????????????????# ##?????????????? | | ????????????????# #?????????????? | | ????????????????# ## #?????????????? | | ????????????????# ### ##?????????????? | | ????????????????## ### % ##??????????????? | | ?????????????????## ### #???????????????? | | ??????????????????# ### ##??????????????? | | ??????????????????# ### #??????????????? | | ??????????????????# ## #??????????????? | | ??????????????????## ### ##?????????????? | | ???????????????????## ##### #?????????????? | | ????????????????????##### ## #?????????????? | | ?????????????????????### #?????????????? | | ????????????????????## #?????????????? | | ???????????????????## ##?????????????? | | ???????????????????# R @ ##??????????????? | | ????????????????# " ### ##???????????????? | | ????????????????#"""" ??###????????????????? | | ????????????????#"""" ??????????????????????? | | ?????????????????""" "???????????????????????? | | ??????????????????" "????????????????????????? | | ????????????????? % ?????????????????????????? | | ????????????????? ???????????????????????????? | | ?????????????????????????????????????????????? | | ?????????????????????????????????????????????? | | ?????????????????????????????????????????????? | | ?????????????????????????????????????????????? | | ?????????????????????????????????????????????? | | ?????????????????????????????????????????????? | | ?????????????????????????????????????????????? | | ?????????????????????????????????????????????? | | ?????????????????????????????????????????????? | | ?????????????????????????????????????????????? | | ?????????????????????????????????????????????? | | ?????????????????????????????????????????????? | | ?????????????????????????????????????????????? | | ?????????????????????????????????????????????? | | ?????????????????????????????????????????????? | | ?????????????????????????????????????????????? | | ?????????????????????????????????????????????? | +----------------------------------------------------+ Best States ------------- Heat Dissipation 25 Coolant Potential 50 Energy Generation 10 Energy Capacity 125 Matter Stores 300 Matter Capacity 300 Sight Range 16 Terrain Scan Density 10 Armor Coverage 100 Evasion (%) 55 Item Schematics ----------------- None Robot Schematics ------------------ None Fabricated ------------ Nothing Repaired ---------- Nothing Studied --------- None Alien Tech Used ----------------- None Achievements -------------- None Challenges ------------ None Game ------ Seed ChargeLightningFlakker Manual? 0 Play Time 00:14:38 Cumulative 272.0 hours Start 2025.10.25 @ 14:48:18 End 2025.10.25 @ 15:41:18 Sessions 1 Manual Loads 0 Difficulty Rogue Special Mode None Game No. 429 Rogue 429 Adventurer 0 Explorer 0 Win Type - Total 1 Types 1/0/0/0/0/0/0/0/0/0 Lore% 64 Gallery% 62 Achievement% 25 Wizard Run 0 Options --------- Layout 1 ASCII 0 Keyboard 0 Movement Mouse Keybinds 0 Fullscreen 2 Font 24/Smallcaps Map View 50x35 Zoom Use 0% Tactical HUD 1 Map Filters NONE Filters NONE Steam 1 RUN: f7226ab6-e564-4ad3-95d7-3509b53f3e79